[Event "Titled Tuesday Blitz February 07 Early 2023"]
[White "Harsh Suresh"]
[Black "Lamaze, Simon"]
[WhiteFideId "45018464"]
[BlackFideId "36069264"]
[WhiteElo "2298"]
[BlackElo "2363"]
[Result "0-1"]
[Round "02"]
[TimeControl "180+2"]
[Date "2023.02.07"]
[WhiteClock "0:00:04"]
[BlackClock "0:00:20"]

1. e4 {[%clk 0:03:00]}  c5 {[%clk 0:02:55]} 2. Nc3 {[%clk 0:03:00]}  Nc6 {[%clk 0:02:54]} 3. Bb5 {[%clk 0:03:00]}  Nd4 {[%clk 0:02:53]} 4. Bc4 {[%clk 0:03:00]}  e6 {[%clk 0:02:48]} 5. Nf3 {[%clk 0:03:01]}  a6 {[%clk 0:02:46]} 6. Nxd4 {[%clk 0:03:00]}  cxd4 {[%clk 0:02:46]} 7. Ne2 {[%clk 0:03:01]}  Nf6 {[%clk 0:02:31]} 8. d3 {[%clk 0:02:57]}  Bc5 {[%clk 0:02:28]} 9. Bb3 {[%clk 0:02:57]}  d5 {[%clk 0:02:24]} 10. e5 {[%clk 0:02:35]}  Nd7 {[%clk 0:02:22]} 11. Bf4 {[%clk 0:02:26]}  f6 {[%clk 0:02:17]} 12. exf6 {[%clk 0:02:21]}  Qxf6 {[%clk 0:02:18]} 13. O-O {[%clk 0:02:19]}  O-O {[%clk 0:02:17]} 14. Bg3 {[%clk 0:02:16]}  Ne5 {[%clk 0:02:00]} 15. Nf4 {[%clk 0:02:13]}  g6 {[%clk 0:01:17]} 16. Re1 {[%clk 0:02:07]}  Nf7 {[%clk 0:01:15]} 17. Qe2 {[%clk 0:01:20]}  Nd8 {[%clk 0:01:03]} 18. a3 {[%clk 0:01:08]}  Bd7 {[%clk 0:01:01]} 19. h4 {[%clk 0:00:54]}  Rc8 {[%clk 0:00:59]} 20. h5 {[%clk 0:00:54]}  g5 {[%clk 0:00:56]} 21. Nxd5 {[%clk 0:00:50]}  exd5 {[%clk 0:00:53]} 22. Bxd5+ {[%clk 0:00:50]}  Nf7 {[%clk 0:00:53]} 23. Bxb7 {[%clk 0:00:30]}  Rce8 {[%clk 0:00:53]} 24. Qd2 {[%clk 0:00:30]}  Bd6 {[%clk 0:00:50]} 25. Bd5 {[%clk 0:00:24]}  Bxg3 {[%clk 0:00:46]} 26. fxg3 {[%clk 0:00:25]}  Kg7 {[%clk 0:00:46]} 27. Rxe8 {[%clk 0:00:20]}  Bxe8 {[%clk 0:00:44]} 28. Rf1 {[%clk 0:00:20]}  Qe5 {[%clk 0:00:43]} 29. Be4 {[%clk 0:00:17]}  Nd6 {[%clk 0:00:40]} 30. Rxf8 {[%clk 0:00:17]}  Kxf8 {[%clk 0:00:41]} 31. Bxh7 {[%clk 0:00:16]}  Bxh5 {[%clk 0:00:41]} 32. Kh2 {[%clk 0:00:12]}  Kg7 {[%clk 0:00:41]} 33. Be4 {[%clk 0:00:11]}  Bg6 {[%clk 0:00:40]} 34. Bf3 {[%clk 0:00:09]}  Nf5 {[%clk 0:00:40]} 35. Qxg5 {[%clk 0:00:09]}  Qe3 {[%clk 0:00:34]} 36. Qg4 {[%clk 0:00:07]}  Qh6+ {[%clk 0:00:31]} 37. Kg1 {[%clk 0:00:07]}  Qc1+ {[%clk 0:00:31]} 38. Kh2 {[%clk 0:00:08]}  Qxc2 {[%clk 0:00:28]} 39. Be4 {[%clk 0:00:08]}  Qc5 {[%clk 0:00:25]} 40. Qg5 {[%clk 0:00:07]}  Qe5 {[%clk 0:00:25]} 41. Kh3 {[%clk 0:00:06]}  Qf6 {[%clk 0:00:22]} 42. Qf4 {[%clk 0:00:03]}  Ne3 {[%clk 0:00:20]} 43. Qc7+ {[%clk 0:00:03]}  Kh6 {[%clk 0:00:20]} 44. Bxg6 {[%clk 0:00:03]}  Kxg6 {[%clk 0:00:19]} 45. Kh2 {[%clk 0:00:02]}  Ng4+ {[%clk 0:00:18]} 46. Kh3 {[%clk 0:00:02]}  Nf2+ {[%clk 0:00:19]} 47. Kh2 {[%clk 0:00:03]}  Nxd3 {[%clk 0:00:18]} 48. Qc2 {[%clk 0:00:02]}  Qf5 {[%clk 0:00:18]} 49. Qc6+ {[%clk 0:00:02]}  Kh5 {[%clk 0:00:19]} 50. Qxa6 {[%clk 0:00:02]}  Ne5 {[%clk 0:00:18]} 51. Qa8 {[%clk 0:00:01]}  Ng4+ {[%clk 0:00:19]} 52. Kh3 {[%clk 0:00:02]}  Ne3+ {[%clk 0:00:16]} 53. Kh2 {[%clk 0:00:02]}  Ng4+ {[%clk 0:00:15]} 54. Kh3 {[%clk 0:00:02]}  d3 {[%clk 0:00:16]} 55. Qh8+ {[%clk 0:00:02]}  Nh6+ {[%clk 0:00:16]} 56. Kh2 {[%clk 0:00:02]}  d2 {[%clk 0:00:16]} 57. Qd4 {[%clk 0:00:02]}  Ng4+ {[%clk 0:00:16]} 58. Kh3 {[%clk 0:00:03]}  Nf2+ {[%clk 0:00:16]} 59. Kh2 {[%clk 0:00:03]}  d1=Q {[%clk 0:00:16]} 60. Qh8+ {[%clk 0:00:03]}  Kg6 {[%clk 0:00:16]} 61. Qg8+ {[%clk 0:00:03]}  Kf6 {[%clk 0:00:17]} 62. Qf8+ {[%clk 0:00:04]}  Ke5 {[%clk 0:00:17]} 63. Qe7+ {[%clk 0:00:04]}  Kd4 {[%clk 0:00:17]} 64. Qd6+ {[%clk 0:00:05]}  Ke3 {[%clk 0:00:18]} 65. Qb6+ {[%clk 0:00:04]}  Qd4 {[%clk 0:00:18]} 66. Qb3+ {[%clk 0:00:04]}  Nd3 {[%clk 0:00:18]} 67. Qd1 {[%clk 0:00:04]}  Qh8+ {[%clk 0:00:19]} 68. Kg1 {[%clk 0:00:04]}  Qf2# {[%clk 0:00:20]} 0-1


[Site "https://www.chess.com"]

[Event "Titled Tuesday Blitz February 07 Early 2023"]
[White "Baghdasaryan, Vahe"]
[Black "Yuan, Qingyu"]
[WhiteFideId "13303139"]
[BlackFideId "8609772"]
[WhiteElo "2257"]
[BlackElo "2373"]
[Result "0-1"]
[Round "02"]
[TimeControl "180+2"]
[Date "2023.02.07"]
[WhiteClock "0:00:15"]
[BlackClock "0:00:52"]

1. e4 {[%clk 0:03:00]}  e5 {[%clk 0:03:00]} 2. Nf3 {[%clk 0:02:59]}  Nc6 {[%clk 0:03:00]} 3. Bc4 {[%clk 0:02:58]}  Bc5 {[%clk 0:03:00]} 4. b4 {[%clk 0:02:58]}  Bxb4 {[%clk 0:03:00]} 5. c3 {[%clk 0:02:57]}  Be7 {[%clk 0:02:51]} 6. d4 {[%clk 0:02:54]}  Na5 {[%clk 0:02:43]} 7. Bd3 {[%clk 0:02:53]}  d6 {[%clk 0:02:39]} 8. dxe5 {[%clk 0:02:52]}  dxe5 {[%clk 0:02:40]} 9. Nxe5 {[%clk 0:02:52]}  Nf6 {[%clk 0:02:40]} 10. O-O {[%clk 0:02:51]}  O-O {[%clk 0:02:40]} 11. Qc2 {[%clk 0:02:51]}  c5 {[%clk 0:02:40]} 12. Nd2 {[%clk 0:02:47]}  Qc7 {[%clk 0:02:35]} 13. f4 {[%clk 0:02:34]}  Bd6 {[%clk 0:02:19]} 14. Ndf3 {[%clk 0:02:30]}  c4 {[%clk 0:02:04]} 15. Be2 {[%clk 0:02:30]}  b6 {[%clk 0:02:00]} 16. Nxc4 {[%clk 0:01:46]}  Nxc4 {[%clk 0:01:56]} 17. e5 {[%clk 0:01:46]}  Nxe5 {[%clk 0:01:28]} 18. fxe5 {[%clk 0:01:46]}  Bxe5 {[%clk 0:01:28]} 19. Nxe5 {[%clk 0:01:36]}  Qxe5 {[%clk 0:01:29]} 20. Ba3 {[%clk 0:01:22]}  Re8 {[%clk 0:01:20]} 21. Bf3 {[%clk 0:00:42]}  Bf5 {[%clk 0:01:15]} 22. Qa4 {[%clk 0:00:34]}  Bd7 {[%clk 0:01:09]} 23. Qh4 {[%clk 0:00:20]}  Rac8 {[%clk 0:01:05]} 24. Rae1 {[%clk 0:00:17]}  Qxc3 {[%clk 0:01:03]} 25. Bb4 {[%clk 0:00:17]}  Qc4 {[%clk 0:00:54]} 26. Rxe8+ {[%clk 0:00:15]}  Bxe8 {[%clk 0:00:54]} 27. Qh3 {[%clk 0:00:15]}  Bd7 {[%clk 0:00:52]} 0-1


[Site "https://www.chess.com"]

[Event "Titled Tuesday Blitz February 07 Early 2023"]
[White "Ohanyan, Emin"]
[Black "Olenik Campa, Rudi"]
[WhiteFideId "13312022"]
[BlackFideId "14633264"]
[WhiteElo "2444"]
[BlackElo "2356"]
[Result "1-0"]
[Round "02"]
[TimeControl "180+2"]
[Date "2023.02.07"]
[WhiteClock "0:01:06"]
[BlackClock "0:00:16"]

1. e4 {[%clk 0:03:00]}  e6 {[%clk 0:02:59]} 2. d4 {[%clk 0:03:01]}  d5 {[%clk 0:02:59]} 3. Nc3 {[%clk 0:03:01]}  Nf6 {[%clk 0:02:59]} 4. e5 {[%clk 0:03:01]}  Nfd7 {[%clk 0:02:59]} 5. f4 {[%clk 0:03:02]}  c5 {[%clk 0:02:59]} 6. Nf3 {[%clk 0:03:02]}  Nc6 {[%clk 0:02:59]} 7. Be3 {[%clk 0:03:02]}  a6 {[%clk 0:02:59]} 8. Qd2 {[%clk 0:03:02]}  b5 {[%clk 0:02:58]} 9. dxc5 {[%clk 0:03:03]}  Bxc5 {[%clk 0:02:58]} 10. Bd3 {[%clk 0:03:03]}  Qb6 {[%clk 0:02:57]} 11. Bf2 {[%clk 0:03:04]}  Bb7 {[%clk 0:02:57]} 12. O-O {[%clk 0:03:03]}  O-O {[%clk 0:02:56]} 13. Rae1 {[%clk 0:03:03]}  Bxf2+ {[%clk 0:02:52]} 14. Rxf2 {[%clk 0:03:00]}  Nc5 {[%clk 0:02:48]} 15. f5 {[%clk 0:02:57]}  b4 {[%clk 0:02:43]} 16. f6 {[%clk 0:02:53]}  h6 {[%clk 0:02:01]} 17. fxg7 {[%clk 0:02:38]}  Kxg7 {[%clk 0:02:02]} 18. Na4 {[%clk 0:01:45]}  Nxa4 {[%clk 0:01:49]} 19. Qf4 {[%clk 0:01:45]}  Qd8 {[%clk 0:01:22]} 20. Qg4+ {[%clk 0:01:44]}  Kh8 {[%clk 0:01:18]} 21. Qh5 {[%clk 0:01:44]}  Kg7 {[%clk 0:01:18]} 22. Re3 {[%clk 0:01:34]}  f5 {[%clk 0:00:29]} 23. Nh4 {[%clk 0:01:23]}  Rg8 {[%clk 0:00:23]} 24. Rg3+ {[%clk 0:01:08]}  Kh7 {[%clk 0:00:20]} 25. Rxf5 {[%clk 0:01:06]}  Rxg3 {[%clk 0:00:16]} 26. Rg5+ {[%clk 0:01:06]} 1-0


[Site "https://www.chess.com"]

[Event "Titled Tuesday Blitz February 07 Early 2023"]
[White "Sukandar, Irine Kharisma"]
[Black "Lodici, Lorenzo"]
[WhiteFideId "7101937"]
[BlackFideId "884189"]
[WhiteElo "2390"]
[BlackElo "2524"]
[Result "1-0"]
[Round "02"]
[TimeControl "180+2"]
[Date "2023.02.07"]
[WhiteClock "0:01:46"]
[BlackClock "0:01:25"]

1. d4 {[%clk 0:03:00]}  Nf6 {[%clk 0:02:36]} 2. Bf4 {[%clk 0:02:59]}  d6 {[%clk 0:02:35]} 3. Nc3 {[%clk 0:02:57]}  Nc6 {[%clk 0:02:30]} 4. e4 {[%clk 0:02:56]}  e5 {[%clk 0:02:23]} 5. dxe5 {[%clk 0:02:55]}  dxe5 {[%clk 0:02:23]} 6. Qxd8+ {[%clk 0:02:54]}  Kxd8 {[%clk 0:02:16]} 7. O-O-O+ {[%clk 0:02:50]}  Bd7 {[%clk 0:02:09]} 8. Bg5 {[%clk 0:02:49]}  Be7 {[%clk 0:02:07]} 9. Nf3 {[%clk 0:02:46]}  Ng4 {[%clk 0:01:57]} 10. Bxe7+ {[%clk 0:02:38]}  Nxe7 {[%clk 0:01:56]} 11. Rd2 {[%clk 0:02:37]}  f6 {[%clk 0:01:55]} 12. Bb5 {[%clk 0:02:33]}  c6 {[%clk 0:01:50]} 13. Rhd1 {[%clk 0:02:29]}  cxb5 {[%clk 0:01:43]} 14. Rxd7+ {[%clk 0:02:29]}  Ke8 {[%clk 0:01:42]} 15. Rxb7 {[%clk 0:02:28]}  a6 {[%clk 0:01:27]} 16. Rdd7 {[%clk 0:02:27]}  Nc6 {[%clk 0:01:27]} 17. Nd5 {[%clk 0:02:12]}  Nxf2 {[%clk 0:01:25]} 18. Rxg7 {[%clk 0:01:46]} 1-0


[Site "https://www.chess.com"]

[Event "Titled Tuesday Blitz February 07 Early 2023"]
[White "Perez Gormaz, Matias"]
[Black "Perez Ponsa, Federico"]
[WhiteFideId "3406342"]
[BlackFideId "117927"]
[WhiteElo "2406"]
[BlackElo "2532"]
[Result "0-1"]
[Round "02"]
[TimeControl "180+2"]
[Date "2023.02.07"]
[WhiteClock "0:00:02"]
[BlackClock "0:00:12"]

1. Nf3 {[%clk 0:03:00]}  Nf6 {[%clk 0:02:52]} 2. g3 {[%clk 0:03:01]}  g6 {[%clk 0:02:52]} 3. b3 {[%clk 0:03:01]}  Bg7 {[%clk 0:02:49]} 4. Bb2 {[%clk 0:03:01]}  c5 {[%clk 0:02:50]} 5. c4 {[%clk 0:03:00]}  d6 {[%clk 0:02:50]} 6. d4 {[%clk 0:02:59]}  Ne4 {[%clk 0:02:50]} 7. Bg2 {[%clk 0:02:56]}  Qa5+ {[%clk 0:02:50]} 8. Nbd2 {[%clk 0:02:54]}  Nc6 {[%clk 0:02:48]} 9. e3 {[%clk 0:02:50]}  Bg4 {[%clk 0:02:45]} 10. O-O {[%clk 0:02:34]}  Nxd2 {[%clk 0:02:24]} 11. Qxd2 {[%clk 0:02:31]}  Qxd2 {[%clk 0:02:22]} 12. Nxd2 {[%clk 0:02:32]}  cxd4 {[%clk 0:02:23]} 13. Bxc6+ {[%clk 0:02:26]}  bxc6 {[%clk 0:02:24]} 14. exd4 {[%clk 0:02:19]}  Kd7 {[%clk 0:02:12]} 15. Rfe1 {[%clk 0:02:18]}  a5 {[%clk 0:02:11]} 16. Re3 {[%clk 0:02:02]}  Rhb8 {[%clk 0:02:08]} 17. Rae1 {[%clk 0:02:02]}  Bf8 {[%clk 0:02:03]} 18. Ne4 {[%clk 0:01:32]}  Bf5 {[%clk 0:01:54]} 19. Ng5 {[%clk 0:01:29]}  h6 {[%clk 0:01:34]} 20. Nh7 {[%clk 0:01:26]}  Ke8 {[%clk 0:00:52]} 21. Nxf8 {[%clk 0:01:14]}  Kxf8 {[%clk 0:00:53]} 22. Rxe7 {[%clk 0:01:14]}  a4 {[%clk 0:00:54]} 23. R7e3 {[%clk 0:00:36]}  axb3 {[%clk 0:00:51]} 24. axb3 {[%clk 0:00:35]}  Bc2 {[%clk 0:00:46]} 25. d5 {[%clk 0:00:24]}  cxd5 {[%clk 0:00:39]} 26. cxd5 {[%clk 0:00:23]}  Rxb3 {[%clk 0:00:38]} 27. Rxb3 {[%clk 0:00:21]}  Bxb3 {[%clk 0:00:38]} 28. Bf6 {[%clk 0:00:22]}  Bxd5 {[%clk 0:00:15]} 29. Be7+ {[%clk 0:00:21]}  Kg8 {[%clk 0:00:15]} 30. Bxd6 {[%clk 0:00:22]}  h5 {[%clk 0:00:14]} 31. h4 {[%clk 0:00:22]}  Be6 {[%clk 0:00:14]} 32. Be5 {[%clk 0:00:23]}  Kh7 {[%clk 0:00:13]} 33. Rb1 {[%clk 0:00:23]}  Ra5 {[%clk 0:00:11]} 34. Bd4 {[%clk 0:00:20]}  g5 {[%clk 0:00:10]} 35. hxg5 {[%clk 0:00:18]}  Rxg5 {[%clk 0:00:11]} 36. Bf6 {[%clk 0:00:17]}  Rg6 {[%clk 0:00:10]} 37. Bh4 {[%clk 0:00:17]}  Rg4 {[%clk 0:00:09]} 38. Re1 {[%clk 0:00:17]}  Kg6 {[%clk 0:00:07]} 39. Re5 {[%clk 0:00:15]}  Bf5 {[%clk 0:00:07]} 40. Re3 {[%clk 0:00:15]}  Rc4 {[%clk 0:00:07]} 41. Re1 {[%clk 0:00:15]}  Be4 {[%clk 0:00:08]} 42. Kh2 {[%clk 0:00:14]}  Kf5 {[%clk 0:00:08]} 43. Rd1 {[%clk 0:00:13]}  Rc2 {[%clk 0:00:08]} 44. Kg1 {[%clk 0:00:13]}  Bf3 {[%clk 0:00:08]} 45. Re1 {[%clk 0:00:13]}  Kg4 {[%clk 0:00:08]} 46. Ra1 {[%clk 0:00:12]}  f5 {[%clk 0:00:08]} 47. Ra4+ {[%clk 0:00:11]}  Be4 {[%clk 0:00:07]} 48. Ra1 {[%clk 0:00:12]}  Kf3 {[%clk 0:00:06]} 49. Ra3+ {[%clk 0:00:12]}  Kg4 {[%clk 0:00:05]} 50. Ra1 {[%clk 0:00:12]}  Kh3 {[%clk 0:00:06]} 51. Re1 {[%clk 0:00:12]}  Rb2 {[%clk 0:00:06]} 52. Bg5 {[%clk 0:00:12]}  Kg4 {[%clk 0:00:06]} 53. Bh4 {[%clk 0:00:12]}  Ra2 {[%clk 0:00:05]} 54. Rc1 {[%clk 0:00:12]}  Rd2 {[%clk 0:00:05]} 55. Re1 {[%clk 0:00:12]}  Rd3 {[%clk 0:00:05]} 56. Rc1 {[%clk 0:00:12]}  f4 {[%clk 0:00:05]} 57. Re1 {[%clk 0:00:12]}  Bf3 {[%clk 0:00:05]} 58. Rc1 {[%clk 0:00:11]}  Rd2 {[%clk 0:00:04]} 59. Re1 {[%clk 0:00:11]}  fxg3 {[%clk 0:00:03]} 60. Bxg3 {[%clk 0:00:11]}  h4 {[%clk 0:00:03]} 61. Bh2 {[%clk 0:00:12]}  Rd7 {[%clk 0:00:03]} 62. Rc1 {[%clk 0:00:11]}  Rg7 {[%clk 0:00:03]} 63. Be5 {[%clk 0:00:10]}  Rg5 {[%clk 0:00:03]} 64. Bf6 {[%clk 0:00:09]}  Rg6 {[%clk 0:00:03]} 65. Bd4 {[%clk 0:00:10]}  Kh3+ {[%clk 0:00:04]} 66. Kf1 {[%clk 0:00:10]}  Bg2+ {[%clk 0:00:04]} 67. Ke1 {[%clk 0:00:10]}  Re6+ {[%clk 0:00:04]} 68. Be3 {[%clk 0:00:09]}  Bf3 {[%clk 0:00:05]} 69. Rc4 {[%clk 0:00:09]}  Be4 {[%clk 0:00:03]} 70. Rd4 {[%clk 0:00:09]}  Kg2 {[%clk 0:00:03]} 71. Kd2 {[%clk 0:00:09]}  h3 {[%clk 0:00:04]} 72. Rd8 {[%clk 0:00:09]}  h2 {[%clk 0:00:04]} 73. Rg8+ {[%clk 0:00:09]}  Kf1 {[%clk 0:00:04]} 74. Rh8 {[%clk 0:00:10]}  h1=Q {[%clk 0:00:05]} 75. Rxh1+ {[%clk 0:00:08]}  Bxh1 {[%clk 0:00:05]} 76. Bd4 {[%clk 0:00:08]}  Re2+ {[%clk 0:00:05]} 77. Kc3 {[%clk 0:00:08]}  Bf3 {[%clk 0:00:06]} 78. Be3 {[%clk 0:00:08]}  Kg2 {[%clk 0:00:07]} 79. Kd4 {[%clk 0:00:09]}  Kh3 {[%clk 0:00:08]} 80. Ke5 {[%clk 0:00:09]}  Kg4 {[%clk 0:00:09]} 81. Kd4 {[%clk 0:00:09]}  Re1 {[%clk 0:00:09]} 82. Ke5 {[%clk 0:00:10]}  Rd1 {[%clk 0:00:10]} 83. Ke6 {[%clk 0:00:10]}  Rd8 {[%clk 0:00:10]} 84. Ke5 {[%clk 0:00:10]}  Re8+ {[%clk 0:00:10]} 85. Kd4 {[%clk 0:00:11]}  Kf5 {[%clk 0:00:10]} 86. Kd3 {[%clk 0:00:11]}  Rd8+ {[%clk 0:00:11]} 87. Kc4 {[%clk 0:00:11]}  Ke4 {[%clk 0:00:11]} 88. Kc5 {[%clk 0:00:12]}  Rd5+ {[%clk 0:00:11]} 89. Kc4 {[%clk 0:00:13]}  Be2+ {[%clk 0:00:11]} 90. Kc3 {[%clk 0:00:13]}  Rd3+ {[%clk 0:00:11]} 91. Kb4 {[%clk 0:00:11]}  Kd5 {[%clk 0:00:11]} 92. Ka4 {[%clk 0:00:04]}  Bd1+ {[%clk 0:00:11]} 93. Kb4 {[%clk 0:00:04]}  Rb3+ {[%clk 0:00:12]} 94. Ka5 {[%clk 0:00:04]}  Kc6 {[%clk 0:00:12]} 95. Bd2 {[%clk 0:00:02]}  Rb5+ {[%clk 0:00:11]} 96. Ka6 {[%clk 0:00:02]}  Rb2 {[%clk 0:00:11]} 97. Ba5 {[%clk 0:00:01]}  Ra2 {[%clk 0:00:12]} 98. f4 {[%clk 0:00:02]}  Be2+ {[%clk 0:00:12]} 0-1


[Site "https://www.chess.com"]

[Event "Titled Tuesday Blitz February 07 Early 2023"]
[White "Boruchovsky, Avital"]
[Black "Tarlabasi, Emirhan"]
[WhiteFideId "2800055"]
[BlackFideId "6350275"]
[WhiteElo "2539"]
[BlackElo "2300"]
[Result "0-1"]
[Round "02"]
[TimeControl "180+2"]
[Date "2023.02.07"]
[WhiteClock "0:00:06"]
[BlackClock "0:00:10"]

1. c4 {[%clk 0:03:00]}  e6 {[%clk 0:03:00]} 2. Nc3 {[%clk 0:02:59]}  d5 {[%clk 0:03:00]} 3. d4 {[%clk 0:03:00]}  Nf6 {[%clk 0:02:56]} 4. Bg5 {[%clk 0:02:58]}  Be7 {[%clk 0:02:56]} 5. e3 {[%clk 0:02:57]}  O-O {[%clk 0:02:56]} 6. Qc2 {[%clk 0:02:56]}  h6 {[%clk 0:02:56]} 7. h4 {[%clk 0:02:52]}  c5 {[%clk 0:02:37]} 8. dxc5 {[%clk 0:02:45]}  dxc4 {[%clk 0:02:36]} 9. Bxc4 {[%clk 0:02:39]}  Qa5 {[%clk 0:02:33]} 10. Nf3 {[%clk 0:02:32]}  Nc6 {[%clk 0:02:30]} 11. a3 {[%clk 0:02:19]}  Qxc5 {[%clk 0:02:20]} 12. Ba2 {[%clk 0:02:12]}  Rd8 {[%clk 0:02:11]} 13. Rc1 {[%clk 0:02:02]}  b6 {[%clk 0:02:07]} 14. Bb1 {[%clk 0:01:59]}  Bb7 {[%clk 0:01:48]} 15. Bxf6 {[%clk 0:01:46]}  Bxf6 {[%clk 0:01:48]} 16. Qh7+ {[%clk 0:01:46]}  Kf8 {[%clk 0:01:48]} 17. O-O {[%clk 0:01:46]}  Qh5 {[%clk 0:01:16]} 18. Ne4 {[%clk 0:01:19]}  Ke7 {[%clk 0:01:15]} 19. Nxf6 {[%clk 0:01:16]}  gxf6 {[%clk 0:01:09]} 20. Qe4 {[%clk 0:01:09]}  Rac8 {[%clk 0:00:54]} 21. Nd4 {[%clk 0:00:51]}  Na5 {[%clk 0:00:52]} 22. Qf4 {[%clk 0:00:51]}  Qe5 {[%clk 0:00:46]} 23. Qxe5 {[%clk 0:00:25]}  fxe5 {[%clk 0:00:46]} 24. Nb5 {[%clk 0:00:25]}  a6 {[%clk 0:00:40]} 25. Nc3 {[%clk 0:00:24]}  Nc4 {[%clk 0:00:36]} 26. Rc2 {[%clk 0:00:16]}  Nxb2 {[%clk 0:00:34]} 27. Rxb2 {[%clk 0:00:17]}  Rxc3 {[%clk 0:00:33]} 28. Rxb6 {[%clk 0:00:18]}  Rd7 {[%clk 0:00:28]} 29. Re1 {[%clk 0:00:16]}  Rxa3 {[%clk 0:00:28]} 30. f3 {[%clk 0:00:15]}  Bd5 {[%clk 0:00:20]} 31. Kf2 {[%clk 0:00:15]}  Bc4 {[%clk 0:00:20]} 32. Rc1 {[%clk 0:00:14]}  Bb5 {[%clk 0:00:20]} 33. Be4 {[%clk 0:00:13]}  Rd2+ {[%clk 0:00:20]} 34. Kg3 {[%clk 0:00:12]}  Rxe3 {[%clk 0:00:21]} 35. Rc7+ {[%clk 0:00:10]}  Rd7 {[%clk 0:00:21]} 36. Rxd7+ {[%clk 0:00:10]}  Kxd7 {[%clk 0:00:19]} 37. Rb7+ {[%clk 0:00:10]}  Ke8 {[%clk 0:00:19]} 38. Ra7 {[%clk 0:00:10]}  f5 {[%clk 0:00:18]} 39. Bb7 {[%clk 0:00:10]}  Re2 {[%clk 0:00:18]} 40. Bxa6 {[%clk 0:00:08]}  Bxa6 {[%clk 0:00:18]} 41. Rxa6 {[%clk 0:00:09]}  Kf7 {[%clk 0:00:18]} 42. Kh3 {[%clk 0:00:07]}  h5 {[%clk 0:00:18]} 43. Ra8 {[%clk 0:00:07]}  e4 {[%clk 0:00:17]} 44. fxe4 {[%clk 0:00:07]}  Rxe4 {[%clk 0:00:16]} 45. Rh8 {[%clk 0:00:06]}  Kg6 {[%clk 0:00:17]} 46. Re8 {[%clk 0:00:06]}  Re3+ {[%clk 0:00:16]} 47. Kh2 {[%clk 0:00:06]}  f4 {[%clk 0:00:17]} 48. Rf8 {[%clk 0:00:06]}  e5 {[%clk 0:00:16]} 49. Re8 {[%clk 0:00:06]}  Kf5 {[%clk 0:00:16]} 50. Rg8 {[%clk 0:00:07]}  Rg3 {[%clk 0:00:07]} 51. Rxg3 {[%clk 0:00:04]}  fxg3+ {[%clk 0:00:08]} 52. Kxg3 {[%clk 0:00:04]}  Ke4 {[%clk 0:00:09]} 53. Kh3 {[%clk 0:00:04]}  Kf4 {[%clk 0:00:08]} 54. g4 {[%clk 0:00:03]}  hxg4+ {[%clk 0:00:08]} 55. Kg2 {[%clk 0:00:04]}  e4 {[%clk 0:00:08]} 56. Kf2 {[%clk 0:00:03]}  e3+ {[%clk 0:00:08]} 57. Ke2 {[%clk 0:00:03]}  g3 {[%clk 0:00:08]} 58. h5 {[%clk 0:00:04]}  g2 {[%clk 0:00:09]} 59. h6 {[%clk 0:00:05]}  g1=Q {[%clk 0:00:09]} 60. h7 {[%clk 0:00:06]}  Qf2+ {[%clk 0:00:10]} 0-1


[Site "https://www.chess.com"]

[Event "Titled Tuesday Blitz February 07 Early 2023"]
[White "Alexakis, Dimitris"]
[Black "Hirneise, Jens"]
[WhiteFideId "4277023"]
[BlackFideId "24614734"]
[WhiteElo "2436"]
[BlackElo "2277"]
[Result "1-0"]
[Round "02"]
[TimeControl "180+2"]
[Date "2023.02.07"]
[WhiteClock "0:00:49"]
[BlackClock "0:00:07"]

1. Nf3 {[%clk 0:02:54]}  Nf6 {[%clk 0:02:55]} 2. g3 {[%clk 0:02:54]}  d5 {[%clk 0:02:53]} 3. Bg2 {[%clk 0:02:55]}  Bg4 {[%clk 0:02:51]} 4. O-O {[%clk 0:02:56]}  c6 {[%clk 0:02:50]} 5. d4 {[%clk 0:02:56]}  Bxf3 {[%clk 0:02:47]} 6. Bxf3 {[%clk 0:02:57]}  e6 {[%clk 0:02:47]} 7. c4 {[%clk 0:02:57]}  Be7 {[%clk 0:02:46]} 8. Qb3 {[%clk 0:02:57]}  Qb6 {[%clk 0:02:46]} 9. Nc3 {[%clk 0:02:58]}  O-O {[%clk 0:02:45]} 10. Bf4 {[%clk 0:02:56]}  Nbd7 {[%clk 0:02:37]} 11. Rfd1 {[%clk 0:02:53]}  Rfc8 {[%clk 0:02:34]} 12. h4 {[%clk 0:02:53]}  dxc4 {[%clk 0:02:23]} 13. Qxc4 {[%clk 0:02:52]}  Nd5 {[%clk 0:02:23]} 14. Rab1 {[%clk 0:02:44]}  Nxf4 {[%clk 0:02:20]} 15. gxf4 {[%clk 0:02:45]}  Bxh4 {[%clk 0:02:15]} 16. e3 {[%clk 0:02:43]}  Be7 {[%clk 0:02:12]} 17. b4 {[%clk 0:02:40]}  Nf6 {[%clk 0:02:07]} 18. e4 {[%clk 0:02:30]}  Qc7 {[%clk 0:02:03]} 19. f5 {[%clk 0:02:26]}  Qf4 {[%clk 0:01:57]} 20. Rd3 {[%clk 0:02:13]}  exf5 {[%clk 0:01:51]} 21. e5 {[%clk 0:02:13]}  Ng4 {[%clk 0:01:36]} 22. Bxg4 {[%clk 0:02:11]}  fxg4 {[%clk 0:01:37]} 23. Re1 {[%clk 0:02:07]}  Bh4 {[%clk 0:01:34]} 24. Ne4 {[%clk 0:02:05]}  Rd8 {[%clk 0:01:29]} 25. Re2 {[%clk 0:01:54]}  h5 {[%clk 0:01:15]} 26. Nd6 {[%clk 0:01:39]}  Rxd6 {[%clk 0:01:00]} 27. exd6 {[%clk 0:01:38]}  Qxd6 {[%clk 0:01:01]} 28. d5 {[%clk 0:01:37]}  cxd5 {[%clk 0:00:53]} 29. Rxd5 {[%clk 0:01:37]}  Qg6 {[%clk 0:00:49]} 30. Qe4 {[%clk 0:01:12]}  g3 {[%clk 0:00:36]} 31. Qxh4 {[%clk 0:01:07]}  gxf2+ {[%clk 0:00:32]} 32. Kxf2 {[%clk 0:01:08]}  Qb6+ {[%clk 0:00:29]} 33. Qd4 {[%clk 0:01:06]}  Qg6 {[%clk 0:00:25]} 34. Rd8+ {[%clk 0:01:03]}  Rxd8 {[%clk 0:00:25]} 35. Qxd8+ {[%clk 0:01:04]}  Kh7 {[%clk 0:00:26]} 36. Qd4 {[%clk 0:01:04]}  Qf5+ {[%clk 0:00:23]} 37. Ke3 {[%clk 0:01:04]}  Qh3+ {[%clk 0:00:22]} 38. Kd2 {[%clk 0:01:04]}  g6 {[%clk 0:00:20]} 39. Re8 {[%clk 0:01:01]}  Qg2+ {[%clk 0:00:19]} 40. Re2 {[%clk 0:01:01]}  Qc6 {[%clk 0:00:18]} 41. Qc3 {[%clk 0:00:58]}  Qd5+ {[%clk 0:00:18]} 42. Kc1 {[%clk 0:00:59]}  h4 {[%clk 0:00:11]} 43. Re8 {[%clk 0:00:56]}  Qh1+ {[%clk 0:00:09]} 44. Kb2 {[%clk 0:00:56]}  Qg2+ {[%clk 0:00:08]} 45. Ka3 {[%clk 0:00:56]}  Kh6 {[%clk 0:00:07]} 46. Rh8+ {[%clk 0:00:52]}  Kg5 {[%clk 0:00:07]} 47. Qe3+ {[%clk 0:00:53]}  Kg4 {[%clk 0:00:04]} 48. Qd4+ {[%clk 0:00:53]}  Kf5 {[%clk 0:00:04]} 49. Qd3+ {[%clk 0:00:47]}  Qe4 {[%clk 0:00:02]} 50. Qxe4+ {[%clk 0:00:45]}  Kxe4 {[%clk 0:00:03]} 51. Rxh4+ {[%clk 0:00:46]}  Kf3 {[%clk 0:00:04]} 52. Rh7 {[%clk 0:00:46]}  f5 {[%clk 0:00:04]} 53. Rxb7 {[%clk 0:00:46]}  g5 {[%clk 0:00:04]} 54. Rxa7 {[%clk 0:00:45]}  g4 {[%clk 0:00:04]} 55. b5 {[%clk 0:00:46]}  g3 {[%clk 0:00:05]} 56. b6 {[%clk 0:00:47]}  g2 {[%clk 0:00:05]} 57. Rg7 {[%clk 0:00:47]}  Kf2 {[%clk 0:00:05]} 58. b7 {[%clk 0:00:48]}  f4 {[%clk 0:00:06]} 59. b8=Q {[%clk 0:00:48]}  f3 {[%clk 0:00:07]} 60. Qb6+ {[%clk 0:00:48]}  Ke2 {[%clk 0:00:07]} 61. Re7+ {[%clk 0:00:48]}  Kd3 {[%clk 0:00:07]} 62. Qe3+ {[%clk 0:00:48]}  Kc2 {[%clk 0:00:08]} 63. Rc7+ {[%clk 0:00:48]}  Kd1 {[%clk 0:00:07]} 64. Rc1# {[%clk 0:00:49]} 1-0


[Site "https://www.chess.com"]